bitfinex/quotes_ETHUSD_20220220
["timestamp","ask_amount","ask_price","bid_price","bid_amount"]
[1645376202371,1.60524572,2646.8,2646.2,1.4925]
[1645376202564,0.25212885,2647.1,2646.2,1.4925]
[1645376202763,1.60523263,2647.0,2646.2,1.7925]
[1645376202969,1.61385357,2647.0,2646.2,1.7925]
[1645376203166,1.60523263,2646.9,2646.2,2.7925]
[1645376203364,1.60523263,2646.9,2646.5,1.1758386]
[1645376203565,1.60523263,2646.9,2646.5,1.7758386]
[1645376203972,1.2838067,2647.1,2646.5,1.7758386]
[1645376204171,1.60523787,2647.0,2646.5,1.7758386]
[1645376204768,0.00212885,2647.1,2646.6,0.94491]
[1645376205023,0.00212885,2647.1,2646.6,2.14491]
[1645376205216,0.00212885,2647.1,2646.6,3.14491]
[1645376207219,0.00212885,2647.1,2646.6,3.20426787]
[1645376209067,0.00212885,2647.1,2646.6,14.68491]
[1645376209272,0.00212885,2647.1,2646.7,0.05935787]
[1645376209473,2.885e-05,2647.1,2646.8,11.7289]
[1645376209666,2.885e-05,2647.1,2647.0,11.54]
[1645376209966,0.00450897,2647.6,2647.2,12.55849569]
[1645376210165,0.00450897,2647.7,2647.6,0.87061917]
[1645376210364,3.50450897,2648.3,2647.6,0.87061917]
[1645376210566,0.00450897,2648.0,2647.6,1.17061917]
[1645376210764,0.00450897,2648.2,2647.6,1.22213187]
[1645376210967,3.50450897,2648.3,2647.6,1.17061917]
[1645376211165,0.00450897,2648.3,2647.6,1.17061917]
[1645376211365,0.00223334,2647.9,2647.6,1.17061917]
[1645376212169,0.00223334,2647.9,2647.6,0.3]
[1645376212365,0.01344099,2648.3,2647.4,0.3]
[1645376212366,0.00450897,2648.3,2647.4,0.3]
[1645376212622,0.00223336,2647.9,2647.4,0.3]
[1645376213222,0.00223336,2647.9,2647.6,11.54]
[1645376213427,0.00450897,2648.3,2647.7,13.48446]
[1645376213625,0.00450897,2648.3,2647.7,1.24446]
[1645376213825,0.00893226,2648.2,2647.8,1.3]
[1645376214026,0.00893226,2648.2,2647.8,0.3]
[1645376214223,0.00893226,2648.2,2647.8,1.3]
[1645376214426,0.00893226,2648.2,2647.8,0.3]
[1645376214625,1.24315533,2648.5,2647.9,1.01649507]
[1645376214823,0.99315533,2648.5,2647.9,1.31649507]
[1645376215024,0.00203715,2648.1,2647.9,1.31649507]
[1645376215223,0.00203715,2648.1,2647.9,2.31649507]
[1645376215824,0.00293966,2648.2,2647.9,3.54269507]
[1645376216263,0.00203715,2648.1,2647.9,3.54269507]
[1645376216865,0.97086493,2648.7,2648.3,0.99435673]
[1645376217071,1.71122984,2648.1,2647.9,2.5262]
[1645376217467,1.71326699,2648.1,2647.9,1.3]
[1645376218268,1.71122984,2648.1,2647.9,1.3]
[1645376218767,1.71122984,2648.1,2647.9,1.94510655]
[1645376220531,0.0029348,2648.0,2647.9,1.94510655]
[1645376220929,0.0029348,2648.0,2647.9,1.0]
[1645376221335,0.0029348,2648.0,2647.8,3.48871]
[1645376221533,0.0029348,2648.0,2647.8,0.6]
[1645376221731,0.0029348,2648.0,2647.9,1.0]
[1645376221931,0.0029348,2648.0,2647.8,0.3]
[1645376222137,0.0029348,2648.0,2647.8,1.2155324]
[1645376222433,0.0029348,2648.0,2647.8,2.2155324]
[1645376223866,0.0029348,2648.0,2647.8,1.3]
[1645376224169,0.0029348,2648.0,2647.8,0.3]
[1645376224370,0.0029348,2648.0,2647.8,1.3]
[1645376224569,0.0029348,2648.0,2647.8,0.3]
[1645376224774,0.0029348,2648.0,2647.8,1.3]
[1645376225066,0.0029348,2648.0,2647.9,1.04833418]
[1645376225367,0.0029348,2648.0,2647.9,1.34833418]
[1645376225766,0.0029348,2648.0,2647.9,2.34833418]
[1645376225966,0.0029348,2648.0,2647.9,1.34833418]
[1645376226169,0.0029348,2648.0,2647.9,2.34833418]
[1645376226370,0.0029348,2648.0,2647.9,1.34833418]
[1645376226668,0.0029348,2648.0,2647.9,2.34833418]
[1645376228318,0.0029348,2648.0,2647.9,1.34833418]
[1645376228820,0.0029348,2648.0,2647.9,2.34833418]
[1645376229016,0.0029348,2648.0,2647.9,0.3]
[1645376229217,0.0029348,2648.0,2647.9,1.0]
[1645376229418,3.5029348,2648.0,2647.8,0.3]
[1645376229617,0.0029348,2648.0,2647.8,0.3]
[1645376230020,0.0029348,2648.0,2647.7,1.04913227]
[1645376230219,0.00555297,2648.0,2647.7,1.04913227]
[1645376230817,0.00555297,2648.0,2647.5,0.00206162]
[1645376231266,0.00555297,2648.0,2647.5,0.30206162]
[1645376231462,0.00555297,2648.0,2647.5,1.3]
[1645376231663,0.00555297,2648.0,2647.6,0.94451]
[1645376231863,0.00555297,2648.0,2647.6,2.1062222]
[1645376232067,0.00555297,2648.0,2647.7,0.3]
[1645376232664,0.00555297,2648.0,2647.6,0.94451]
[1645376233666,0.00555297,2648.0,2647.6,1.78925238]
[1645376234067,0.00555297,2648.0,2647.7,0.3]
[1645376235027,0.00555297,2648.0,2647.6,1.44474238]
[1645376236819,0.00555297,2648.0,2647.6,0.84474238]
[1645376237425,0.00555297,2648.0,2647.6,1.78925238]
[1645376238022,0.00555297,2648.0,2647.7,0.3]
[1645376239767,9.97930634,2649.0,2647.7,24.8]
[1645376239973,6.2337,2649.1,2647.8,12.59969068]
[1645376240180,0.00207352,2648.6,2648.1,11.54]
[1645376240371,0.00207352,2648.6,2648.3,11.54]
[1645376240575,0.00207352,2648.6,2648.2,1.05969068]
[1645376240776,0.88502535,2649.8,2648.4,11.54]
[1645376240983,1.42506542,2650.3,2648.9,11.54]
[1645376240984,1.13565687,2650.0,2648.9,11.54]
[1645376241176,1.6036112,2649.9,2648.9,11.54]
[1645376241373,1.6036112,2649.9,2649.4,0.3]
[1645376241676,0.70267051,2650.7,2649.3,15.2287]
[1645376241877,0.70267051,2651.5,2650.2,5.0]
[1645376242079,0.70267051,2652.1,2650.7,5.0]
[1645376242275,0.70267051,2652.1,2651.0,5.0]
[1645376242533,3.15060526,2652.6,2651.5,22.0]
[1645376242726,3.15060526,2652.6,2651.4,10.11493458]
[1645376242727,2.0491972,2653.1,2652.2,1.12065661]
[1645376242924,1.7991972,2653.1,2652.3,10.90299296]
[1645376243122,3.5,2653.0,2652.3,0.78805838]
[1645376243322,3.5,2653.0,2652.3,2.08805838]
[1645376243526,1.9875972,2653.1,2652.3,1.08805838]
[1645376243723,3.5,2653.0,2652.3,1.08805838]
[1645376243921,4.55556928,2653.0,2652.3,1.08805838]
[1645376244222,4.74396928,2653.0,2652.3,1.08805838]
[1645376244420,1.24396928,2653.0,2652.3,1.08805838]
[1645376245022,1.24396928,2653.0,2652.5,3.5]
[1645376245821,3.5,2652.9,2652.5,3.5]
[1645376246028,3.6884,2652.9,2652.5,0.93638894]
[1645376246263,0.1884,2652.8,2652.3,4.28805838]
[1645376246666,16.54,2652.5,2652.3,5.838e-05]
[1645376246866,11.9176,2652.3,2650.6,0.1884]
[1645376247066,0.3776,2652.1,2650.3,0.07354053]
[1645376247266,11.54,2651.9,2650.3,0.62970377]
[1645376247464,11.7285,2651.9,2650.3,0.62970377]
[1645376247665,1.03310044,2651.0,2650.3,1.25756161]
[1645376247869,0.00241564,2651.7,2650.3,1.25756161]
[1645376248065,0.25,2651.6,2650.3,1.25756161]
[1645376248467,0.25,2651.6,2650.5,0.94353]
[1645376248768,0.00241588,2651.1,2650.5,0.94353]
[1645376249767,1.07850876,2651.2,2650.5,0.94353]
[1645376250058,0.00241594,2650.9,2650.5,0.94353]
[1645376250449,0.00241594,2650.9,2650.6,0.3]
[1645376251046,1.07850876,2651.2,2650.6,0.3]
[1645376251247,0.00241289,2650.9,2650.6,0.3]
[1645376252147,1.07850876,2651.2,2650.6,0.3]
[1645376252347,0.00241289,2650.9,2650.6,0.3]
[1645376253350,1.07850876,2651.2,2650.5,0.94353]
[1645376253551,0.00241289,2650.9,2650.5,0.94353]
[1645376254363,1.07850876,2651.2,2650.5,0.94353]
[1645376254563,1.07850876,2651.2,2650.5,1.24353]
[1645376254765,0.00241598,2650.8,2650.6,0.3]
[1645376254963,0.00584992,2650.8,2650.6,0.3]
[1645376255766,0.00343394,2650.8,2650.6,0.3]
[1645376255967,0.00584992,2650.8,2650.6,0.3]
[1645376256465,0.00584992,2650.8,2650.7,0.8870975]
[1645376256965,0.00343394,2650.8,2650.7,0.8870975]
[1645376257164,0.00343394,2650.8,2650.6,1.6]
[1645376257818,0.00343394,2650.8,2650.6,0.6]
[1645376258019,0.00343394,2650.8,2650.6,0.3]
[1645376258430,0.00584992,2650.8,2650.6,0.3]
[1645376258624,0.00584992,2650.8,2650.6,3.8]
[1645376258822,0.01298345,2651.2,2650.7,1.05996432]
[1645376259020,0.01298345,2651.2,2650.8,3.5]
[1645376259222,0.01298345,2651.2,2650.8,0.6]
[1645376259425,0.01298345,2651.2,2650.9,1.0]
[1645376259622,0.003321,2651.2,2650.9,0.93998785]
[1645376259825,0.003321,2651.2,2650.8,1.6]
[1645376260023,0.003321,2651.2,2650.8,0.3]
[1645376260226,0.00452321,2651.5,2650.6,1.7885]
[1645376260624,0.00452321,2651.5,2650.6,1.84846432]
[1645376261029,0.00452321,2651.5,2650.9,0.86405854]
[1645376261263,1.17610569,2651.6,2650.9,1.46405854]
[1645376261663,1.17610569,2651.6,2650.9,2.40743854]
[1645376262064,0.00452321,2651.6,2650.9,2.40743854]
[1645376262364,0.00221769,2651.4,2650.9,2.40743854]
[1645376262965,0.00452321,2652.0,2650.9,2.40743854]
[1645376263166,0.00221772,2651.3,2650.9,2.40743854]
[1645376264166,0.00452321,2651.8,2650.9,2.40743854]
[1645376264365,0.00241582,2651.2,2650.9,2.40743854]
[1645376265218,0.00241582,2651.2,2651.0,3.8]
[1645376265415,0.00332752,2651.5,2651.0,3.8]
[1645376265614,0.00241584,2651.2,2651.1,1.0]
[1645376265817,0.00241584,2651.2,2651.1,3.18642]
[1645376266216,0.00241584,2651.2,2651.1,2.18642]
[1645376266416,0.00332752,2651.5,2651.1,3.18642]
[1645376266617,0.00151478,2652.0,2651.5,0.84532058]
[1645376266817,0.00882378,2651.7,2651.5,1.44532058]
[1645376267016,0.26374089,2651.4,2651.2,1.0]
[1645376267217,0.26374089,2651.4,2651.2,0.94318]
[1645376267417,0.26374089,2651.4,2651.2,1.94318]
[1645376267617,0.26374089,2651.4,2651.3,1.0973225]
[1645376267818,0.26374089,2651.4,2651.3,4.5973225]
[1645376268017,0.2659471,2651.4,2651.3,4.5973225]
[1645376268216,0.2659471,2651.4,2651.3,7.1404125]
[1645376268418,0.00882354,2651.8,2651.4,0.94305]
[1645376268620,0.00882354,2651.8,2651.5,3.5]
[1645376268874,0.00151478,2652.1,2651.7,0.94305]
[1645376269072,0.00151478,2652.2,2651.7,2.12911324]
[1645376269371,1.13550688,2652.4,2651.7,2.42911324]
[1645376269572,0.00151478,2652.3,2651.6,1.0]
[1645376269773,0.00151478,2652.3,2651.1,1.88642]
[1645376270473,0.00332057,2651.2,2651.1,1.88642]
[1645376270771,0.00332057,2651.2,2651.1,2.80955048]
[1645376271173,0.00332057,2651.2,2651.1,4.40955048]
[1645376273232,0.00332057,2651.2,2651.1,3.43642]
[1645376273434,0.00332057,2651.2,2651.1,2.43642]
[1645376273630,0.00332057,2651.2,2651.1,3.43642]
[1645376273837,0.00332057,2651.2,2651.1,2.43642]
[1645376274133,0.00332057,2651.2,2651.1,3.43642]
[1645376274330,0.00332057,2651.2,2651.1,4.50830011]
[1645376274531,0.00332057,2651.2,2651.1,3.50830011]
[1645376274733,0.00332057,2651.2,2651.1,4.50830011]
[1645376276130,0.00483535,2652.1,2651.2,4.5]
[1645376276374,0.00241557,2651.5,2651.3,1.0]
[1645376276871,0.00241557,2651.5,2651.3,0.3]
[1645376277070,0.00241557,2651.5,2651.2,1.6]
[1645376277369,0.1885,2652.3,2651.2,1.6]
[1645376277570,0.0024157,2651.5,2651.2,1.6]
[1645376278570,1.16958864,2651.9,2651.2,1.6]
[1645376278869,0.00241567,2651.5,2651.2,1.6]
[1645376279671,1.16958864,2651.9,2651.2,1.6]
[1645376279872,0.00135465,2651.5,2651.2,1.6]
[1645376280917,1.17500652,2651.9,2651.2,1.6]
[1645376280918,1.16958864,2651.9,2651.2,1.6]
[1645376281117,0.00135465,2651.5,2651.2,1.6]
[1645376282120,1.16958864,2651.9,2651.2,1.6]
[1645376282321,0.00135465,2651.5,2651.2,1.6]
[1645376282921,0.00135465,2651.5,2651.2,0.6]
[1645376283120,0.00135465,2651.5,2651.2,1.3]
[1645376283320,1.16958864,2651.9,2651.2,1.3]
[1645376283523,1.16958864,2651.9,2651.0,1.88651]
[1645376283524,0.00241752,2651.5,2651.0,1.88651]
[1645376283780,0.00241752,2651.5,2650.5,0.94355]
[1645376283781,1.13699423,2651.3,2650.5,0.94355]
[1645376283981,1.60247023,2651.2,2650.5,0.94355]
[1645376284174,1.60247023,2651.2,2650.2,3.77262]
[1645376284379,1.60247023,2651.2,2649.8,4.0]
[1645376284574,1.60247023,2651.2,2649.8,0.5]
[1645376284575,6.60247023,2651.2,2649.8,0.5]
[1645376284777,6.60247023,2651.1,2649.8,0.5]
[1645376284980,6.60247023,2651.1,2649.7,4.9992]
[1645376284981,1.18971979,2650.1,2649.7,4.9992]
[1645376285374,1.18971979,2650.1,2649.8,1.0]
[1645376285576,1.18971979,2650.1,2649.5,2.51654259]
[1645376285776,1.18971979,2650.1,2649.8,0.3]
[1645376286079,1.18971979,2650.1,2649.7,0.94386]
[1645376287278,0.25,2650.9,2649.7,1.00624481]
[1645376287517,1.60290977,2650.8,2649.7,1.00624481]
[1645376287715,0.69512441,2651.2,2649.8,1.88741]
[1645376287716,1.60290977,2650.7,2649.8,1.88741]
[1645376287916,1.60290977,2650.6,2649.8,1.88741]
[1645376288118,1.18772777,2650.7,2650.0,1.02502023]
[1645376288518,1.60294042,2650.6,2650.0,1.02502023]
[1645376288719,1.60294042,2650.6,2649.9,1.3]
[1645376288921,1.60294042,2650.6,2649.9,0.3]
[1645376289119,1.60294042,2650.6,2649.9,1.3]
[1645376289320,1.60294042,2650.6,2650.1,0.94368]
[1645376289520,0.00395747,2651.2,2650.1,0.94368]
[1645376289725,0.00395747,2651.2,2650.2,0.3]
[1645376290118,1.60676936,2651.2,2650.2,0.3]
[1645376290421,1.1515505,2650.7,2650.2,0.3]
[1645376290720,1.60281189,2650.6,2650.2,0.3]
[1645376290919,1.60281189,2650.6,2650.2,1.3]
[1645376291119,50.0,2651.0,2650.2,0.3]
[1645376291394,50.0,2651.0,2650.2,1.35996432]
[1645376291592,1.60714575,2650.9,2650.2,0.35996432]
[1645376291790,0.00446584,2650.9,2650.2,1.35996432]
[1645376291990,0.00446584,2650.9,2650.2,0.35996432]
[1645376292190,0.00446584,2650.9,2650.2,1.35996432]
[1645376292400,0.91552187,2650.7,2650.2,1.3]
[1645376292591,0.91998771,2650.7,2650.2,1.3]
[1645376293495,0.00446584,2650.7,2650.2,2.24353]
[1645376293696,0.00446584,2650.9,2650.2,1.24353]
[1645376293891,0.00446584,2650.9,2650.3,1.88707]
[1645376294091,0.00446584,2650.9,2650.3,2.18707]
[1645376294290,0.00446584,2650.9,2650.3,3.48707]
[1645376294491,0.00446584,2650.9,2650.4,1.95918775]
[1645376294694,0.01195574,2650.9,2650.4,1.95918775]
[1645376294899,0.01195574,2650.9,2650.5,1.2434]
[1645376295130,0.01195574,2650.9,2650.6,0.9433403]
[1645376295324,0.0074899,2650.9,2650.6,1.2433403]
[1645376295922,0.0074899,2650.9,2650.6,0.3]
[1645376297327,0.0002899,2650.9,2650.8,0.85964398]
[1645376297535,50.0,2651.0,2650.8,4.65964398]
[1645376297727,50.0,2651.0,2650.9,3.5]
[1645376297927,50.0,2651.0,2650.9,1.0]
[1645376297928,44.34068,2651.0,2650.9,1.0]
[1645376298127,0.00446584,2651.2,2651.0,16.5]
[1645376298326,0.0022452,2651.5,2651.1,12.54]
[1645376298525,0.0022452,2651.5,2651.2,12.45338709]
[1645376298772,0.0022452,2651.5,2651.3,1.0]
[1645376298976,0.00446584,2652.1,2651.3,1.0]
[1645376299174,1.60215801,2652.0,2651.2,1.51338709]
[1645376299376,0.01343814,2651.9,2651.6,1.07171014]
[1645376299578,0.0089723,2651.9,2651.6,1.07171014]
[1645376299777,0.0089723,2651.9,2651.7,0.3]
[1645376300182,3.50446584,2652.6,2651.7,0.3]
[1645376300183,0.00446584,2652.6,2651.7,0.3]
[1645376300378,1.60210558,2652.5,2651.7,0.3]
[1645376300578,0.00224326,2651.9,2651.7,1.24305]
[1645376300781,0.00224326,2651.9,2651.7,2.24305]
[1645376301182,0.00224326,2651.9,2651.8,0.94295]
[1645376301386,0.00446584,2652.6,2651.8,1.13145]
[1645376301580,1.60192035,2652.5,2651.9,1.88569]
[1645376301880,0.0089717,2652.3,2652.0,1.8855908]
[1645376302079,0.0089717,2652.3,2652.1,1.10807883]
[1645376302278,0.0089717,2652.3,2652.1,1.70807883]
[1645376302536,0.00446584,2652.6,2652.2,1.8855444]
[1645376302828,0.00446584,2652.7,2652.3,1.24264]
[1645376303022,1.7991972,2653.1,2652.3,1.54264]
[1645376303323,1.60170462,2653.0,2652.8,1.05074819]
[1645376303525,1.7991972,2653.1,2652.7,0.28498377]
[1645376303826,1.7991972,2653.1,2652.8,0.3]
[1645376304023,1.7991972,2653.1,2652.7,0.88498377]
[1645376304222,1.7991972,2653.1,2652.8,0.3]
[1645376304624,1.7991972,2653.1,2652.8,0.94266]
[1645376304829,0.25,2653.8,2653.1,11.54]
[1645376305033,4.29425901,2654.6,2653.0,1.88514]
[1645376305034,0.69512441,2654.7,2653.3,11.54]
[1645376305329,0.69512441,2654.7,2653.4,0.3]
[1645376305531,1.60110901,2654.6,2654.2,11.54]
[1645376305729,0.94263213,2654.7,2654.3,1.2421]
[1645376305927,0.94263213,2654.7,2654.3,2.2421]
[1645376306127,0.94263213,2654.7,2653.5,6.7034]
[1645376306376,6.60098521,2654.6,2653.5,7.0034]
[1645376306573,1.60098521,2654.5,2653.5,1.7882]
[1645376306974,1.60098521,2654.5,2653.6,0.94244]
[1645376307173,1.60098521,2654.4,2653.6,0.94244]
[1645376307373,0.00241834,2654.6,2653.6,1.24244]
[1645376307576,0.00241834,2654.6,2653.8,1.88454]
[1645376307773,0.00241852,2654.2,2653.8,2.18454]
[1645376307981,0.00241852,2654.2,2653.9,12.51284192]
[1645376308175,0.00967263,2654.6,2653.8,3.76863]
[1645376308775,5.1882,2654.9,2653.8,1.88454]
[1645376308975,1.60102737,2654.8,2653.8,1.88454]
[1645376309174,1.01082222,2654.3,2653.8,2.96934541]
[1645376309376,1.01082222,2654.3,2653.9,1.0]
[1645376309774,1.01082222,2654.3,2653.9,1.6]
[1645376310028,1.01216153,2654.3,2653.9,1.6]
[1645376310220,1.01216153,2654.3,2653.9,0.3]
[1645376310418,1.01216153,2654.3,2653.9,1.3]
[1645376310623,1.01216153,2654.3,2653.9,1.0]
[1645376310820,1.01216153,2654.3,2653.8,2.48454]
[1645376311022,1.01082222,2654.3,2653.8,2.48454]
[1645376311223,1.01324063,2654.3,2653.8,3.48454]
[1645376311623,1.01324063,2654.3,2653.8,2.48454]
[1645376312221,1.01082222,2654.3,2653.8,1.88454]
[1645376312421,0.00241838,2654.3,2653.8,1.88454]
[1645376313423,0.00344059,2654.6,2653.8,2.18454]
[1645376313622,0.00344059,2654.6,2653.9,1.16439345]
[1645376313623,1.18495526,2654.4,2653.9,1.16439345]
[1645376313867,0.00241838,2654.3,2653.8,2.48454]
[1645376314568,1.18495526,2654.4,2653.8,2.48454]
[1645376314767,0.00313904,2654.2,2653.8,2.48454]
[1645376315167,0.00313904,2654.2,2653.8,0.6]
[1645376315771,0.00313904,2654.2,2653.5,0.4882]
[1645376315969,0.00313904,2654.2,2653.5,0.1882]
[1645376316169,0.9069408,2653.7,2653.5,0.1882]
[1645376316372,25.5,2654.1,2652.6,5.65439]
[1645376316576,25.5,2654.1,2651.9,3.7704]
[1645376316577,5.0,2652.7,2651.9,3.7704]
[1645376316777,5.0,2652.7,2650.1,9.12339958]
[1645376316778,5.0,2652.1,2650.1,9.12339958]
[1645376316970,3.5,2652.0,2650.8,0.5]
[1645376317170,5.0,2652.1,2650.1,4.44865862]
[1645376317538,5.0,2652.1,2649.9,7.5451]
[1645376317539,5.0,2651.4,2650.3,0.5]
[1645376317725,5.0,2651.1,2650.3,0.5]
[1645376317926,5.0,2650.9,2650.3,0.5]
[1645376318128,4.5,2651.0,2649.3,1.1716]
[1645376318328,0.1885,2650.9,2649.3,1.1716]
[1645376318524,3.5,2651.1,2649.3,1.1716]
[1645376318922,8.5,2651.1,2649.3,1.1716]
[1645376319125,0.62869194,2650.4,2649.6,1.15349254]
[1645376319629,0.62869194,2650.4,2649.7,0.5]
[1645376320028,0.62869194,2650.4,2649.9,0.00221499]
[1645376320424,3.5,2650.9,2649.9,0.00221499]
[1645376320628,3.5,2651.2,2649.9,0.00221499]
[1645376320832,3.5,2651.2,2649.7,0.5]
[1645376321033,5.0,2651.0,2649.7,0.5]
[1645376321272,0.1885,2650.9,2650.0,0.00221493]
[1645376321471,0.62869194,2650.6,2650.0,0.00221493]
[1645376321971,0.62869194,2650.6,2649.7,0.5]
[1645376322171,0.62869194,2650.6,2649.7,0.8]
[1645376322371,0.62869194,2650.6,2650.2,0.0022252]
[1645376323272,0.62869194,2650.6,2649.7,0.8]
[1645376323478,0.62869194,2650.6,2650.3,0.00222516]
[1645376324373,0.62869194,2650.6,2649.7,0.8]
[1645376324572,0.62869194,2650.6,2649.7,0.79576407]
[1645376324773,0.62869194,2650.6,2650.3,0.00218341]
[1645376325015,0.00436682,2650.2,2649.7,0.79576407]
[1645376325420,0.00436682,2650.2,2649.7,0.49576407]
[1645376325817,0.00436682,2650.2,2649.7,0.7952]
[1645376326218,0.00436682,2650.2,2649.7,1.0952]
[1645376327421,0.00436682,2650.2,2649.7,0.6]
[1645376327820,0.00436682,2650.2,2649.0,1.0]
[1645376328120,0.00436682,2650.2,2649.1,0.86536519]
[1645376328320,0.00436682,2650.2,2649.8,0.00108093]
[1645376329167,0.00436682,2650.2,2649.1,1.16536519]
[1645376329467,0.00436682,2650.2,2649.9,0.00242041]
[1645376329667,0.00302987,2650.1,2649.9,0.00242041]
[1645376330077,0.00302987,2650.1,2649.9,2.041e-05]
[1645376330078,3.50302987,2650.1,2649.9,2.041e-05]
[1645376330270,5.1885,2650.0,2649.9,2.041e-05]
[1645376330469,8.6885,2650.0,2648.2,4.2991]
[1645376330668,3.5,2650.0,2648.2,4.2991]
[1645376330868,8.5,2650.0,2648.0,2.4263]
[1645376331267,3.5,2650.0,2648.0,13.9663]
[1645376331467,3.5,2650.0,2648.7,0.8642125]
[1645376331868,3.5,2650.0,2648.7,1.4642125]
[1645376332070,3.5,2650.0,2648.7,0.3]
[1645376332071,5.0,2649.8,2648.7,0.3]
[1645376332273,3.6887,2649.7,2648.3,0.3]
[1645376332722,3.6887,2649.7,2648.1,0.3]
[1645376332922,3.6887,2649.7,2648.1,1.3]
[1645376333122,3.6887,2649.7,2648.9,0.00107968]
[1645376334123,3.6887,2649.7,2648.2,0.93807148]
[1645376334326,0.62869194,2649.6,2649.2,0.0024207]
[1645376334526,3.5,2649.5,2649.2,0.0024207]
[1645376335327,3.5,2649.5,2648.3,0.3]
[1645376335527,3.5,2649.5,2649.2,0.00242068]
[1645376336375,3.5,2649.5,2648.3,0.3]
[1645376336573,5.0,2649.3,2647.6,1.2088]
[1645376336871,3.5,2649.5,2647.6,1.2088]
[1645376336872,4.5,2649.2,2647.6,1.2088]
[1645376337272,3.5,2649.2,2647.8,0.94436]
[1645376337474,3.5,2649.4,2647.8,0.94436]
[1645376337672,0.1887,2649.3,2648.2,1.11393065]
[1645376337871,0.1887,2649.3,2648.4,0.002421]
[1645376338880,0.1887,2649.3,2648.3,0.6]
[1645376339075,0.1887,2649.3,2648.7,0.00242088]
[1645376339477,0.1887,2649.8,2648.7,0.00242088]
[1645376339677,3.5,2649.8,2648.7,0.00242088]
[1645376340020,3.5,2649.8,2648.6,1.72363223]
[1645376340021,0.0030112,2649.4,2648.6,1.72363223]
[1645376340422,0.0030112,2649.4,2649.1,0.00242072]
[1645376340621,0.63170314,2649.4,2649.1,0.00242072]
[1645376341222,0.63170314,2649.4,2648.6,1.72363223]
[1645376341432,0.63170314,2649.4,2649.1,0.00242072]
[1645376342425,0.63170314,2649.4,2648.6,1.72363223]
[1645376342623,0.63170314,2649.4,2649.1,0.00221895]
[1645376343777,0.63170314,2649.4,2648.1,1.0]
[1645376343980,0.63170314,2649.4,2649.1,0.00221895]
[1645376344175,0.0030112,2649.4,2649.1,0.00221895]
[1645376344778,3.50300853,2650.0,2649.1,0.00221895]
[1645376344975,0.00665684,2648.9,2648.7,1.48322764]
[1645376345176,0.00665684,2648.9,2648.7,1.78322764]
[1645376346381,0.00665684,2648.9,2648.8,11.54]
[1645376346582,5.684e-05,2648.9,2648.8,11.54]
[1645376346878,5.684e-05,2648.9,2648.8,12.54]
[1645376347277,0.00300853,2650.0,2649.1,14.3714]
[1645376347546,0.00300853,2650.0,2649.4,0.99109313]
[1645376347737,0.00300853,2650.0,2649.4,1.29109313]
[1645376347937,0.00300853,2650.0,2649.4,1.59109313]
[1645376348539,3.80300853,2650.0,2649.4,1.59109313]
[1645376348741,3.80300853,2650.0,2649.6,0.00224712]
[1645376349741,3.8,2650.0,2649.2,0.3]
[1645376349943,3.8,2650.0,2649.7,0.00224295]
[1645376350543,4.42869194,2650.0,2649.7,0.00224295]
[1645376350943,4.42869194,2650.0,2649.2,1.16785308]
[1645376350944,4.42869194,2650.0,2649.2,1.76785308]
[1645376351143,4.42869194,2650.0,2649.7,0.00224294]
[1645376352174,4.42869194,2650.0,2649.2,0.3]
[1645376352373,4.42869194,2650.0,2649.7,0.00224294]
[1645376353175,4.42869194,2650.0,2649.1,1.09216652]
[1645376353374,3.8,2650.0,2649.1,2.33611652]
[1645376353576,3.8,2650.0,2649.7,0.00224352]
[1645376354379,3.8,2650.0,2649.1,2.63611652]
[1645376354775,0.00333739,2649.9,2649.7,0.00224352]
[1645376355822,0.00333739,2649.9,2649.1,2.63611652]
[1645376356026,0.00333739,2649.9,2649.7,0.00224354]
[1645376356824,0.00333739,2649.9,2649.1,2.63611652]
[1645376357227,0.00333739,2649.9,2649.7,0.00204027]
[1645376358025,0.00333739,2649.9,2649.1,2.63611652]
[1645376358225,0.00333739,2649.9,2649.7,0.00204027]
[1645376359176,0.00436682,2650.2,2649.7,0.00204027]
[1645376359377,0.00436682,2650.2,2649.5,0.3]
[1645376359582,0.0081559,2651.4,2650.1,5.01280189]
[1645376359784,0.1811,2651.9,2651.4,1.06846717]
[1645376359980,1.60237672,2651.8,2650.9,11.54]
[1645376360182,0.25,2652.1,2651.0,0.1882]
[1645376360378,1.60219898,2652.0,2651.3,1.88602]
[1645376360778,1.60219898,2652.0,2651.4,0.3]
[1645376360982,5.40219898,2651.9,2651.4,0.6]
[1645376361181,1.60219898,2651.8,2651.0,3.82902]
[1645376361378,1.60219898,2651.8,2651.0,4.12902]
[1645376361982,0.0020661,2651.5,2651.0,4.12902]
[1645376362829,1.60219898,2651.8,2651.0,4.12902]
[1645376363229,0.00206604,2651.5,2651.0,4.12902]
[1645376365129,0.00206604,2651.5,2651.0,3.12902]
[1645376365331,0.00311237,2651.7,2651.0,3.12902]
[1645376365531,0.0020419,2651.5,2651.0,3.12902]
[1645376366580,0.00311237,2651.7,2651.0,3.12902]
[1645376366879,0.00223351,2651.5,2651.0,3.12902]
[1645376367681,0.00311237,2651.7,2651.0,3.12902]
[1645376367981,0.00223351,2651.5,2651.0,3.12902]
[1645376368980,0.00311237,2651.7,2651.0,3.12902]
[1645376369182,0.00222813,2651.5,2651.0,3.12902]
[1645376370128,0.00310369,2651.4,2651.0,3.12902]
[1645376371127,0.00310369,2651.4,2651.0,4.31141922]
[1645376373974,0.00310369,2651.4,2651.0,3.12902]
[1645376374374,0.00310369,2651.4,2651.0,0.3]
[1645376374572,0.00310369,2651.4,2650.9,1.54552939]
[1645376374975,0.00310369,2651.4,2650.9,1.5433]
[1645376375280,0.00310369,2651.4,2650.9,1.54552939]
[1645376375474,0.00310369,2651.4,2650.9,2.60134488]
[1645376376073,0.00310369,2651.4,2650.9,2.59911549]
[1645376376272,0.00310369,2651.4,2650.9,2.60134474]
[1645376377373,0.00310369,2651.4,2650.9,2.59911549]
[1645376377624,0.00310369,2651.4,2650.9,2.60134474]
[1645376378027,0.00310369,2651.4,2650.9,0.94552925]
[1645376378337,0.00310369,2651.4,2650.2,2.69169]